[Event "Groningen Festival 2018"]
[Site "Groningen"]
[Date "2018.12.22"]
[Round "1"]
[White "Beerdsen, Thomas"]
[Black "Elgersma, Onno"]
[Result "1/2-1/2"]
[ECO "B20"]
[WhiteElo "2477"]
[BlackElo "2192"]
[Annotator "RC"]
[PlyCount "82"]
[EventDate "2018.12.22"]
[EventType "swiss"]
[EventCountry "NED"]
[SourceTitle "playchess.com"]
[Source "ChessBase"]
[SourceQuality "1"]
[TimeControl "40/5400+30:1800+30"]

1. e4 {[%emt 0:00:00]} e6 {[%emt 0:00:00]} 2. b3 {[%emt 0:00:36]} d5 {[%emt 0:00:44]} 3. Bb2 {[%emt 1:30:54]} c5 {[%emt 0:03:44]} 4. Nf3 {[%emt 0:00:00]} dxe4 {[%emt 0:05:28]} 5. Ne5 Nd7 {[%emt 1:22:34]} 6. Bb5 {[%emt 0:00:00]} Ngf6 {[%emt 0:00:30]} 7. Na3 {[%emt 0:00:00]} Qc7 {[%emt 0:00:00]} 8. O-O {[%emt 0:00:00]} a6 {[%emt 0:00:00]} 9. Bxd7+ {[%emt 0:00:00]} Bxd7 {[%emt 0:00:00]} 10. Qe2 {[%emt 0:00:00]} Bc6 {[%emt 0:00:00]} 11. Nac4 {[%emt 0:00:00]} Bd5 {[%emt 0:00:00]} 12. a4 {[%emt 0:00:00]} b6 {[%emt 0:00:00]} 13. Qe3 {[%emt 0:00:00]} Rc8 {[%emt 0:00:00]} 14. Rae1 {[%emt 0:00:00]} b5 {[%emt 0:00:00]} 15. axb5 {[%emt 0:00:00]} axb5 {[%emt 0:00:00]} 16. Na3 {[%emt 0:00:00]} Rb8 {[%emt 0:00:00]} 17. Qg5 {[%emt 0:00:00]} h6 {[%emt 0:00:00]} 18. Qg3 {[%emt 0:00:00]} h5 {[%emt 0:00:00]} 19. d3 {[%emt 0:00:00]} h4 {[%emt 0:00:00]} 20. Qh3 {[%emt 0:00:00]} exd3 {[%emt 0:00:00]} 21. Nxd3 {[%emt 0:00:00]} c4 {[%emt 0:00:00]} 22. Ne5 {[%emt 0:00:00]} c3 {[%emt 0:00:00]} 23. Bc1 {[%emt 0:00:00]} Bd6 {[%emt 0:00:00]} 24. Nd3 {[%emt 0:00:00]} Ne4 {[%emt 0:00:00]} 25. Re2 {[%emt 0:00:00]} Bxa3 {[%emt 0:06:27]} 26. Bxa3 {[%emt 0:00:00]} Ng5 {[%emt 0:00:07]} 27. Qe3 {[%emt 0:08:26]} h3 {[%emt 0:00:15]} 28. f3 {[%emt 0:00:08]} hxg2 {[%emt 0:03:09]} 29. Rxg2 {[%emt 0:00:06]} Nh3+ {[%emt 0:00:42]} 30. Kh1 {[%emt 0:00:06]} Rh7 {[%emt 0:00:30]} 31. Bc5 {[%emt 0:00:54]} g5 {[%emt 0:00:43]} 32. Nb4 {[%emt 0:01:43]} Nf4 {[%emt 0:00:26]} 33. Rxg5 {[%emt 0:00:18]} f6 {[%emt 0:00:31]} 34. Na6 {[%emt 0:01:55]} Rxh2+ {[%emt 0:01:10]} 35. Kxh2 Qh7+ {[%emt 0:00:00]} 36. Kg1 {[%emt 0:01:20]} fxg5 {[%emt 0:00:17]} 37. Nxb8 {[%emt 0:00:49]} Qxc2 {[%emt 0:00:16]} 38. Rf2 {[%emt 0:00:22]} Qb1+ {[%emt 0:00:30]} 39. Rf1 {[%emt 0:00:59]} Qc2 {[%emt 0:00:18]} 40. Rf2 {[%emt 0:00:10]} Qb1+ {[%emt 0:00:33]} 41. Rf1 {[%emt 0:30:12]} Qc2 {[%emt 0:03:23]} 1/2-1/2

[Event "Groningen Festival 2018"]
[Site "Groningen"]
[Date "2018.12.23"]
[Round "2"]
[White "Kabos, Tobias"]
[Black "Warmerdam, Max"]
[Result "*"]
[ECO "A40"]
[WhiteElo "2299"]
[BlackElo "2433"]
[Annotator "RC"]
[PlyCount "82"]
[EventDate "2018.12.22"]
[EventType "swiss"]
[EventCountry "NED"]
[SourceTitle "playchess.com"]
[Source "ChessBase"]
[SourceQuality "1"]
[TimeControl "40/5400+30:1800+30"]

1. d4 {[%emt 0:00:00]} e6 {[%emt 0:03:31]} 2. Bf4 {[%emt 0:03:35]} c5 {[%emt 0:01:52]} 3. e3 {[%emt 0:02:54]} Qb6 {[%emt 0:01:55]} 4. b3 {[%emt 0:03:45]} Nf6 {[%emt 0:02:28]} 5. Nf3 {[%emt 0:01:19]} Nc6 {[%emt 0:11:48]} 6. c3 {[%emt 0:09:53]} Be7 {[%emt 0:03:55]} 7. Bd3 {[%emt 0:04:14]} O-O {[%emt 0:02:00]} 8. Nbd2 {[%emt 0:11:06]} Nd5 {[%emt 0:14:31]} 9. Nc4 {[%emt 0:18:03]} Qd8 {[%emt 0:00:47]} 10. dxc5 {[%emt 0:00:56]} Bxc5 {[%emt 0:05:35]} 11. O-O {[%emt 0:10:08]} h6 {[%emt 0:07:51]} 12. Bg3 {[%emt 0:07:19]} Nxc3 {[%emt 0:04:18]} 13. Qc2 {[%emt 0:02:31]} Nd5 {[%emt 0:01:31]} 14. a3 {[%emt 0:00:31]} Be7 {[%emt 0:08:15]} 15. e4 {[%emt 0:04:20]} Nf6 {[%emt 0:02:00]} 16. e5 {[%emt 0:09:22]} Nh5 {[%emt 0:04:01]} 17. b4 {[%emt 0:02:18]} b5 {[%emt 0:07:36]} 18. Nd6 {[%emt 0:01:57]} Nxg3 {[%emt 0:02:27]} 19. hxg3 {[%emt 0:01:02]} Nxe5 {[%emt 0:02:13]} 20. Nxe5 {[%emt 0:00:32]} Bxd6 {[%emt 0:00:20]} 21. Qe2 {[%emt 0:00:27]} Rb8 {[%emt 0:05:27]} 22. Bxb5 {[%emt 0:00:43]} Qg5 {[%emt 0:01:29]} 23. f4 {[%emt 0:00:59]} Qxg3 {[%emt 0:00:59]} 24. Rf3 {[%emt 0:00:46]} Qh4 {[%emt 0:00:27]} 25. Bd3 {[%emt 0:00:43]} Bc7 {[%emt 0:01:41]} 26. g3 {[%emt 0:01:43]} Qh3 {[%emt 0:00:38]} 27. Qh2 {[%emt 0:00:06]} Bb6+ {[%emt 0:02:12]} 28. Kh1 {[%emt 0:00:01]} Qxh2+ {[%emt 0:00:20]} 29. Kxh2 {[%emt 0:00:03]} Bb7 {[%emt 0:01:13]} 30. Rff1 {[%emt 0:00:09]} Rfd8 {[%emt 0:00:35]} 31. Rac1 {[%emt 0:00:27]} Kf8 {[%emt 0:00:36]} 32. a4 {[%emt 0:01:20]} Bd5 {[%emt 0:00:40]} 33. Nc4 {[%emt 0:00:48]} Bd4 {[%emt 0:00:21]} 34. b5 {[%emt 0:00:26]} Ke7 {[%emt 0:00:43]} 35. Rfd1 {[%emt 0:01:44]} Rdc8 {[%emt 0:00:21]} 36. Be2 {[%emt 0:01:03]} Bf2 {[%emt 0:00:24]} 37. Ne5 {[%emt 0:00:33]} Be3 {[%emt 0:00:25]} 38. Rxc8 {[%emt 0:00:39]} Rxc8 {[%emt 0:00:07]} 39. Rd3 {[%emt 0:00:25]} Rc1 {[%emt 0:01:01]} 40. Bf3 {[%emt 0:00:20]} Bxf3 {[%emt 0:00:48]} 41. Nxf3 {[%emt 0:30:16]} Bb6 {[%emt 0:30:25]} *

[Event "Groningen Festival 2018"]
[Site "Groningen"]
[Date "2018.12.26"]
[Round "5"]
[White "Krasenkow, Michal"]
[Black "Kabos, Tobias"]
[Result "1-0"]
[ECO "D30"]
[WhiteElo "2630"]
[BlackElo "2299"]
[Annotator "RC"]
[PlyCount "87"]
[EventDate "2018.12.22"]
[EventType "swiss"]
[EventCountry "NED"]
[SourceTitle "playchess.com"]
[Source "ChessBase"]
[SourceQuality "1"]
[TimeControl "40/5400+30:1800+30"]

1. d4 {[%emt 0:00:00]} Nf6 {[%emt 0:00:00]} 2. c4 {[%emt 0:00:00]} e6 {[%emt 0:00:15]} 3. Nf3 {[%emt 0:00:07]} d5 {[%emt 0:00:27]} 4. Qc2 {[%emt 0:01:51]} Be7 {[%emt 0:03:31]} 5. Bg5 {[%emt 0:00:59]} O-O {[%emt 0:06:20]} 6. Nbd2 {[%emt 0:00:27]} b6 {[%emt 0:04:20]} 7. cxd5 {[%emt 0:03:19]} exd5 {[%emt 0:01:29]} 8. e3 {[%emt 0:00:48]} Bb7 {[%emt 0:05:15]} 9. Bd3 {[%emt 0:00:26]} h6 {[%emt 0:04:32]} 10. Bxf6 {[%emt 0:04:15]} Bxf6 {[%emt 0:02:32]} 11. O-O {[%emt 0:01:06]} Nd7 {[%emt 0:04:37]} 12. b4 {[%emt 0:01:37]} c6 {[%emt 0:10:55]} 13. e4 {[%emt 0:04:21]} dxe4 {[%emt 0:02:38]} 14. Bxe4 {[%emt 0:00:28]} Rc8 {[%emt 0:04:41]} 15. Rab1 {[%emt 0:04:35]} Qc7 {[%emt 0:03:48]} 16. Rfe1 {[%emt 0:04:25]} Rfe8 {[%emt 0:04:19]} 17. Nc4 {[%emt 0:01:19]} Nf8 {[%emt 0:05:18]} 18. Nce5 {[%emt 0:03:32]} Ne6 {[%emt 0:02:39]} 19. Qc4 {[%emt 0:01:56]} Kf8 {[%emt 0:05:34]} 20. Ng4 {[%emt 0:10:58]} Ng5 {[%emt 0:09:11]} 21. Nxg5 {[%emt 0:12:12]} hxg5 {[%emt 0:01:26]} 22. Re3 {[%emt 0:06:29]} Qd6 {[%emt 0:01:50]} 23. Nxf6 {[%emt 0:05:06]} gxf6 {[%emt 0:00:38]} 24. Qe2 {[%emt 0:04:34]} Kg7 {[%emt 0:00:42]} 25. h4 {[%emt 0:04:33]} Rh8 {[%emt 0:01:45]} 26. h5 {[%emt 0:01:23]} Rc7 {[%emt 0:00:57]} 27. Bf3 {[%emt 0:03:13]} Bc8 {[%emt 0:01:48]} 28. Rc1 {[%emt 0:05:10]} Be6 {[%emt 0:01:08]} 29. b5 {[%emt 0:02:41]} cxb5 {[%emt 0:00:36]} 30. Rxc7 {[%emt 0:00:10]} Qxc7 {[%emt 0:00:07]} 31. d5 {[%emt 0:00:21]} Bc8 {[%emt 0:04:26]} 32. g3 {[%emt 0:08:18]} Qc4 {[%emt 0:00:41]} 33. Qd2 {[%emt 0:00:34]} Bh3 {[%emt 0:01:24]} 34. Be2 {[%emt 0:01:36]} Qc8 {[%emt 0:01:31]} 35. d6 {[%emt 0:00:57]} Qf5 {[%emt 0:01:54]} 36. Re7 {[%emt 0:01:37]} Rd8 {[%emt 0:01:22]} 37. Qd4 {[%emt 0:00:55]} g4 {[%emt 0:02:22]} 38. h6+ {[%emt 0:00:27]} Kf8 {[%emt 0:01:00]} 39. Bd3 {[%emt 0:00:58]} Qf3 {[%emt 0:00:32]} 40. Be4 {[%emt 0:00:31]} Qe2 {[%emt 0:00:28]} 41. Bg2 {[%emt 0:31:30]} Rxd6 {[%emt 0:06:51]} 42. Qxd6 {[%emt 0:00:00]} Qxe7 {[%emt 0:00:06]} 43. Qb8+ {[%emt 0:00:00]} Qe8 {[%emt 0:00:07]} 44. Qxe8+ {[%emt 0:00:00]} 1-0

[Event "Groningen Festival 2018"]
[Site "Groningen"]
[Date "2018.12.26"]
[Round "5"]
[White "Plat, Vojtech"]
[Black "Schoppen, Casper"]
[Result "1/2-1/2"]
[ECO "B22"]
[WhiteElo "2550"]
[BlackElo "2431"]
[Annotator "ChessBase"]
[PlyCount "109"]
[EventDate "2018.12.22"]
[EventType "swiss"]
[EventCountry "NED"]
[SourceTitle "playchess.com"]
[Source "ChessBase"]
[SourceQuality "1"]
[TimeControl "40/5400+30:1800+30"]

1. e4 {[%emt 0:00:00]} c5 {[%emt 0:00:05]} 2. Nf3 {[%emt 0:00:00]} Nc6 {[%emt 0:00:25]} 3. c3 {[%emt 0:00:03]} e6 {[%emt 0:08:36]} 4. d4 {[%emt 0:05:50]} d5 {[%emt 0:00:36]} 5. exd5 {[%emt 0:00:10]} exd5 {[%emt 0:00:20]} 6. Bb5 {[%emt 0:00:46]} Bd6 {[%emt 0:01:22]} 7. Be3 {[%emt 0:11:07]} cxd4 {[%emt 0:15:38]} 8. Nxd4 {[%emt 0:00:19]} Nge7 {[%emt 0:00:52]} 9. Nd2 {[%emt 0:00:12]} O-O {[%emt 0:00:27]} 10. N2f3 {[%emt 0:00:04]} Qc7 {[%emt 0:03:00]} 11. Bd3 {[%emt 0:08:11]} Nxd4 {[%emt 0:02:34]} 12. Nxd4 {[%emt 0:00:23]} a6 {[%emt 0:00:58]} 13. Qf3 {[%emt 0:01:22]} Rd8 {[%emt 0:15:12]} 14. h4 {[%emt 0:02:49]} Nc6 {[%emt 0:06:04]} 15. Nxc6 {[%emt 0:07:08]} bxc6 {[%emt 0:00:18]} 16. h5 {[%emt 0:00:28]} Be5 {[%emt 0:05:39]} 17. O-O {[%emt 0:09:39]} h6 {[%emt 0:14:01]} 18. Rae1 {[%emt 0:02:08]} a5 {[%emt 0:05:55]} 19. Bc1 {[%emt 0:00:43]} Bd6 {[%emt 0:00:46]} 20. Bc2 {[%emt 0:11:43]} f5 {[%emt 0:04:38]} 21. Bd3 {[%emt 0:02:24]} Qf7 {[%emt 0:01:39]} 22. Re2 {[%emt 0:00:34]} Bd7 {[%emt 0:01:24]} 23. Rfe1 {[%emt 0:01:45]} Re8 {[%emt 0:00:47]} 24. Bf4 {[%emt 0:04:53]} Bf8 {[%emt 0:07:04]} 25. Be5 {[%emt 0:01:28]} Bc5 {[%emt 0:01:41]} 26. Qg3 {[%emt 0:05:28]} Bf8 {[%emt 0:00:24]} 27. Qh4 {[%emt 0:01:22]} Be7 {[%emt 0:01:23]} 28. Qh2 {[%emt 0:00:22]} Bc5 {[%emt 0:00:40]} 29. g4 {[%emt 0:03:57]} fxg4 {[%emt 0:00:58]} 30. Bg6 {[%emt 0:00:51]} Qf3 {[%emt 0:00:31]} 31. Bxe8 {[%emt 0:01:46]} Rxe8 {[%emt 0:00:05]} 32. Qf4 {[%emt 0:02:32]} Bf5 {[%emt 0:00:25]} 33. b4 {[%emt 0:03:50]} axb4 {[%emt 0:00:40]} 34. cxb4 {[%emt 0:00:02]} Ba7 {[%emt 0:00:33]} 35. Qxf3 {[%emt 0:05:29]} gxf3 {[%emt 0:00:05]} 36. Re3 {[%emt 0:00:18]} Be4 {[%emt 0:01:33]} 37. Bb2 {[%emt 0:01:02]} Bxe3 {[%emt 0:00:25]} 38. fxe3 {[%emt 0:00:15]} Rb8 {[%emt 0:00:17]} 39. a3 {[%emt 0:00:18]} c5 {[%emt 0:00:15]} 40. Bc3 {[%emt 0:00:52]} cxb4 {[%emt 0:00:29]} 41. axb4 {[%emt 0:30:04]} Rc8 {[%emt 0:09:17]} 42. Rc1 {[%emt 0:00:00]} Kf7 {[%emt 0:01:20]} 43. Kf2 {[%emt 0:00:00]} g6 {[%emt 0:01:36]} 44. hxg6+ {[%emt 0:00:00]} Kxg6 {[%emt 0:00:04]} 45. Bb2 {[%emt 0:00:00]} Rc4 {[%emt 0:02:59]} 46. Ba3 {[%emt 0:00:00]} Kf5 {[%emt 0:00:58]} 47. b5 {[%emt 0:00:00]} Ke6 {[%emt 0:01:05]} 48. Kg3 {[%emt 0:00:00]} Kd7 {[%emt 0:01:32]} 49. Bb2 {[%emt 0:00:00]} Kc7 {[%emt 0:01:45]} 50. Rh1 {[%emt 0:00:00]} Kb7 {[%emt 0:08:13]} 51. Rh2 {[%emt 0:00:00]} h5 {[%emt 0:00:27]} 52. Bd4 {[%emt 0:00:00]} Rc8 {[%emt 0:06:01]} 53. Ra2 {[%emt 0:00:00]} Rg8+ {[%emt 0:00:15]} 54. Kh4 {[%emt 0:00:00]} Ra8 {[%emt 0:01:27]} 55. Rxa8 {[%emt 0:00:00]} 1/2-1/2

[Event "Groningen Festival 2018"]
[Site "Groningen"]
[Date "2018.12.26"]
[Round "5"]
[White "Pruijssers, Roeland"]
[Black "Ulybin, Mikhail"]
[Result "0-1"]
[ECO "C05"]
[WhiteElo "2520"]
[BlackElo "2482"]
[Annotator "ChessBase"]
[PlyCount "84"]
[EventDate "2018.12.22"]
[EventType "swiss"]
[EventCountry "NED"]
[SourceTitle "playchess.com"]
[Source "ChessBase"]
[SourceQuality "1"]
[TimeControl "40/5400+30:1800+30"]

1. e4 {[%emt 0:00:00]} e6 {[%emt 0:03:33]} 2. d4 {[%emt 0:00:00]} d5 {[%emt 0:00:57]} 3. Nd2 {[%emt 0:00:09]} Nf6 {[%emt 0:01:39]} 4. e5 {[%emt 0:00:46]} Nfd7 {[%emt 0:00:49]} 5. f4 {[%emt 0:00:15]} c5 {[%emt 0:01:31]} 6. c3 {[%emt 0:04:06]} Nc6 {[%emt 0:00:50]} 7. Ndf3 {[%emt 0:00:09]} Qb6 {[%emt 0:00:49]} 8. g3 {[%emt 0:00:30]} Be7 {[%emt 0:03:10]} 9. Kf2 {[%emt 0:12:28]} a5 {[%emt 0:03:38]} 10. Kg2 {[%emt 0:03:22]} cxd4 {[%emt 0:07:37]} 11. cxd4 {[%emt 0:00:07]} a4 {[%emt 0:01:09]} 12. Nh3 {[%emt 0:01:18]} Ndb8 {[%emt 0:12:59]} 13. Nf2 {[%emt 0:14:41]} Bd7 {[%emt 0:06:00]} 14. Bd2 {[%emt 0:09:59]} Na5 {[%emt 0:17:57]} 15. Bxa5 {[%emt 0:10:06]} Rxa5 {[%emt 0:02:07]} 16. Bd3 {[%emt 0:00:27]} Nc6 {[%emt 0:08:37]} 17. Bc2 {[%emt 0:08:19]} Qxb2 {[%emt 0:11:17]} 18. Rb1 {[%emt 0:01:19]} Qxa2 {[%emt 0:01:51]} 19. Qd2 {[%emt 0:11:22]} b5 {[%emt 0:06:56]} 20. Rhc1 {[%emt 0:01:52]} Ba3 {[%emt 0:04:44]} 21. Re1 {[%emt 0:00:40]} Bb2 {[%emt 0:01:07]} 22. Nd3 {[%emt 0:04:41]} a3 {[%emt 0:00:45]} 23. Nc5 {[%emt 0:01:11]} Qc4 {[%emt 0:00:40]} 24. Bb3 {[%emt 0:09:59]} Qc3 {[%emt 0:00:30]} 25. Qe2 {[%emt 0:01:10]} Nxd4 {[%emt 0:00:23]} 26. Nxd4 {[%emt 0:00:02]} Qxc5 {[%emt 0:00:28]} 27. Nf3 {[%emt 0:00:01]} Qc3 {[%emt 0:00:43]} 28. Ba2 {[%emt 0:00:41]} O-O {[%emt 0:00:23]} 29. f5 {[%emt 0:00:05]} exf5 {[%emt 0:00:19]} 30. Bxd5 {[%emt 0:00:06]} Be6 {[%emt 0:00:18]} 31. Bxe6 {[%emt 0:00:08]} fxe6 {[%emt 0:00:07]} 32. Red1 {[%emt 0:00:33]} b4 {[%emt 0:00:36]} 33. Nd4 {[%emt 0:00:26]} Rd5 {[%emt 0:00:44]} 34. Nf3 {[%emt 0:00:46]} Rxd1 {[%emt 0:00:59]} 35. Rxd1 {[%emt 0:00:01]} a2 {[%emt 0:00:33]} 36. Qa6 {[%emt 0:00:02]} Qc2+ {[%emt 0:00:27]} 37. Rd2 {[%emt 0:00:36]} Qxd2+ {[%emt 0:00:32]} 38. Nxd2 {[%emt 0:00:02]} a1=Q {[%emt 0:00:12]} 39. Qxe6+ {[%emt 0:00:05]} Kh8 {[%emt 0:00:10]} 40. Nc4 {[%emt 0:00:05]} Bd4 {[%emt 0:00:51]} 41. Nd6 {[%emt 0:30:39]} Qg1+ {[%emt 0:30:37]} 42. Kf3 {[%emt 0:01:00]} Qf2# {[%emt 0:01:26]} 0-1

[Event "Groningen Festival 2018"]
[Site "Groningen"]
[Date "2018.12.26"]
[Round "5"]
[White "Gleizerov, Evgeny"]
[Black "Kislinsky, Alexey"]
[Result "0-1"]
[ECO "A40"]
[WhiteElo "2504"]
[BlackElo "2425"]
[Annotator "ChessBase"]
[PlyCount "70"]
[EventDate "2018.12.22"]
[EventType "swiss"]
[EventCountry "NED"]
[SourceTitle "playchess.com"]
[Source "ChessBase"]
[SourceQuality "1"]
[TimeControl "40/5400+30:1800+30"]

1. d4 {[%emt 0:00:00]} g6 {[%emt 0:00:00]} 2. c4 {[%emt 0:00:08]} Bg7 {[%emt 0:00:00]} 3. Nf3 {[%emt 0:00:03]} c5 {[%emt 0:00:26]} 4. d5 {[%emt 0:02:33]} d6 {[%emt 0:00:56]} 5. Nc3 {[%emt 0:00:26]} Bxc3+ {[%emt 0:01:01]} 6. bxc3 {[%emt 0:00:04]} f5 {[%emt 0:00:08]} 7. Bf4 {[%emt 0:07:40]} Nf6 {[%emt 0:01:19]} 8. e3 {[%emt 0:00:03]} Qa5 {[%emt 0:00:37]} 9. Qc2 {[%emt 0:00:06]} Nbd7 {[%emt 0:01:00]} 10. Bd3 {[%emt 0:00:32]} b5 {[%emt 0:03:23]} 11. Nd2 {[%emt 0:06:03]} bxc4 {[%emt 0:06:07]} 12. Nxc4 {[%emt 0:03:58]} Qc7 {[%emt 0:00:05]} 13. e4 {[%emt 0:04:09]} fxe4 {[%emt 0:02:14]} 14. Bxe4 {[%emt 0:00:14]} Ba6 {[%emt 0:00:55]} 15. Bd3 {[%emt 0:11:55]} O-O {[%emt 0:11:32]} 16. Ne3 {[%emt 0:02:44]} Bxd3 {[%emt 0:01:45]} 17. Qxd3 {[%emt 0:00:03]} c4 {[%emt 0:16:09]} 18. Qd4 {[%emt 0:10:38]} Qc5 {[%emt 0:00:42]} 19. Rd1 {[%emt 0:00:24]} Qxd4 {[%emt 0:05:24]} 20. Rxd4 {[%emt 0:00:27]} Nc5 {[%emt 0:00:08]} 21. Rxc4 {[%emt 0:08:03]} Nfe4 {[%emt 0:06:37]} 22. Bg3 {[%emt 0:02:15]} Rab8 {[%emt 0:02:30]} 23. Nd1 {[%emt 0:03:34]} Nd3+ {[%emt 0:12:18]} 24. Ke2 {[%emt 0:00:13]} Ndxf2 {[%emt 0:01:32]} 25. Nxf2 {[%emt 0:15:46]} Rb2+ {[%emt 0:03:28]} 26. Kd3 {[%emt 0:02:50]} Nxf2+ {[%emt 0:01:22]} 27. Bxf2 {[%emt 0:00:08]} Rfxf2 {[%emt 0:00:47]} 28. Re4 {[%emt 0:02:13]} Rfd2+ {[%emt 0:03:59]} 29. Kc4 {[%emt 0:00:04]} e5 {[%emt 0:00:30]} 30. a3 {[%emt 0:03:07]} Rxg2 {[%emt 0:02:14]} 31. h4 {[%emt 0:00:05]} h5 {[%emt 0:01:05]} 32. Rf1 {[%emt 0:00:47]} Kg7 {[%emt 0:00:18]} 33. Rf3 {[%emt 0:00:56]} Rb7 {[%emt 0:00:39]} 34. Kd3 {[%emt 0:00:41]} Rb5 {[%emt 0:01:29]} 35. Ra4 {[%emt 0:00:05]} a5 {[%emt 0:00:25]} 0-1

[Event "Groningen Festival 2018"]
[Site "Groningen"]
[Date "2018.12.26"]
[Round "5"]
[White "Ladva, Ottomar"]
[Black "Tiviakov, Sergei"]
[Result "1/2-1/2"]
[ECO "E06"]
[WhiteElo "2497"]
[BlackElo "2613"]
[Annotator "RC"]
[PlyCount "121"]
[EventDate "2018.12.22"]
[EventType "swiss"]
[EventCountry "NED"]
[SourceTitle "playchess.com"]
[Source "ChessBase"]
[SourceQuality "1"]
[TimeControl "40/5400+30:1800+30"]

1. d4 {[%emt 0:00:00]} Nf6 {[%emt 0:00:00]} 2. Nf3 {[%emt 0:00:00]} e6 {[%emt 0:00:00]} 3. g3 {[%emt 0:00:00]} b6 {[%emt 0:00:00]} 4. Bg2 {[%emt 0:00:07]} Bb7 {[%emt 0:00:00]} 5. O-O {[%emt 0:00:14]} Be7 {[%emt 0:00:00]} 6. c4 {[%emt 0:00:07]} c6 {[%emt 0:00:06]} 7. Nc3 {[%emt 0:01:12]} d5 {[%emt 0:00:07]} 8. Ne5 {[%emt 0:09:11]} Nfd7 {[%emt 0:01:41]} 9. cxd5 {[%emt 0:15:58]} cxd5 {[%emt 0:00:19]} 10. Bf4 {[%emt 0:08:48]} O-O {[%emt 0:02:03]} 11. Nc4 {[%emt 0:07:02]} Nf6 {[%emt 0:02:08]} 12. Rc1 {[%emt 0:13:06]} Nc6 {[%emt 0:02:17]} 13. Ne5 {[%emt 0:00:12]} Rc8 {[%emt 0:02:36]} 14. Qa4 {[%emt 0:05:57]} a6 {[%emt 0:02:18]} 15. Nxc6 {[%emt 0:08:57]} Rxc6 {[%emt 0:00:20]} 16. Nb1 {[%emt 0:08:00]} b5 {[%emt 0:00:58]} 17. Qb3 {[%emt 0:02:37]} Rc4 {[%emt 0:04:02]} 18. Qd3 {[%emt 0:02:49]} Qb6 {[%emt 0:04:44]} 19. b3 {[%emt 0:00:45]} Rcc8 {[%emt 0:01:32]} 20. Rxc8 {[%emt 0:04:06]} Rxc8 {[%emt 0:00:09]} 21. Rc1 {[%emt 0:00:07]} Rxc1+ {[%emt 0:02:23]} 22. Bxc1 {[%emt 0:00:02]} b4 {[%emt 0:02:45]} 23. e3 {[%emt 0:03:58]} Qc6 {[%emt 0:05:09]} 24. Bb2 {[%emt 0:00:20]} Ne4 {[%emt 0:00:25]} 25. Qd1 {[%emt 0:03:43]} g6 {[%emt 0:03:33]} 26. Qc1 {[%emt 0:01:19]} a5 {[%emt 0:03:08]} 27. Qxc6 {[%emt 0:02:07]} Bxc6 {[%emt 0:00:30]} 28. f3 {[%emt 0:00:05]} Nd6 {[%emt 0:00:10]} 29. a4 {[%emt 0:00:36]} Nf5 {[%emt 0:28:59]} 30. Kf2 {[%emt 0:00:02]} Bg5 {[%emt 0:00:08]} 31. f4 {[%emt 0:00:32]} Bd8 {[%emt 0:00:19]} 32. g4 {[%emt 0:00:54]} Nd6 {[%emt 0:07:26]} 33. Nd2 {[%emt 0:00:01]} Bh4+ {[%emt 0:01:08]} 34. Ke2 {[%emt 0:00:40]} Bb7 {[%emt 0:00:33]} 35. Kd1 {[%emt 0:01:44]} Bf2 {[%emt 0:01:43]} 36. Ke2 {[%emt 0:00:30]} Bg1 {[%emt 0:02:53]} 37. h3 {[%emt 0:00:51]} Ba6+ {[%emt 0:00:20]} 38. Kf3 {[%emt 0:00:01]} Bd3 {[%emt 0:00:12]} 39. Bc1 {[%emt 0:01:19]} g5 {[%emt 0:11:07]} 40. fxg5 {[%emt 0:01:03]} Bc2 {[%emt 0:00:14]} 41. Ke2 {[%emt 0:07:41]} Ne4 {[%emt 0:00:52]} 42. Bxe4 {[%emt 0:08:42]} dxe4 {[%emt 0:00:08]} 43. Nc4 {[%emt 0:00:23]} Bxb3 {[%emt 0:02:21]} 44. Nxa5 {[%emt 0:00:07]} Bxa4 {[%emt 0:00:29]} 45. h4 {[%emt 0:07:54]} Bb5+ {[%emt 0:16:05]} 46. Ke1 {[%emt 0:01:49]} Bh2 {[%emt 0:01:01]} 47. Kf2 {[%emt 0:00:01]} Bc7 {[%emt 0:00:15]} 48. Nb3 {[%emt 0:00:25]} Bc4 {[%emt 0:00:36]} 49. Nc5 {[%emt 0:00:14]} Bd5 {[%emt 0:00:09]} 50. Nd7 {[%emt 0:01:38]} b3 {[%emt 0:02:47]} 51. Nf6+ {[%emt 0:01:27]} Kh8 {[%emt 0:00:04]} 52. h5 {[%emt 0:01:49]} h6 {[%emt 0:09:01]} 53. gxh6 {[%emt 0:00:40]} Bd8 {[%emt 0:00:03]} 54. g5 {[%emt 0:01:23]} Bxf6 {[%emt 0:00:03]} 55. gxf6 {[%emt 0:00:03]} Kh7 {[%emt 0:00:03]} 56. Kg3 {[%emt 0:00:20]} Kxh6 {[%emt 0:00:06]} 57. Kh4 {[%emt 0:00:10]} Bc4 {[%emt 0:00:37]} 58. Ba3 {[%emt 0:00:02]} Be2 {[%emt 0:00:06]} 59. Bf8+ {[%emt 0:00:03]} Kh7 {[%emt 0:00:03]} 60. Ba3 {[%emt 0:00:04]} Kh6 {[%emt 0:01:22]} 61. Bf8+ {[%emt 0:00:05]} 1/2-1/2

[Event "Groningen Festival 2018"]
[Site "Groningen"]
[Date "2018.12.26"]
[Round "5"]
[White "Beerdsen, Thomas"]
[Black "Pel, Bonno"]
[Result "1/2-1/2"]
[ECO "B07"]
[WhiteElo "2477"]
[BlackElo "2279"]
[Annotator "ChessBase"]
[PlyCount "86"]
[EventDate "2018.12.22"]
[EventType "swiss"]
[EventCountry "NED"]
[SourceTitle "playchess.com"]
[Source "ChessBase"]
[SourceQuality "1"]
[TimeControl "40/5400+30:1800+30"]

1. e4 {[%emt 0:00:00]} d6 {[%emt 0:00:00]} 2. d4 {[%emt 0:00:00]} g6 {[%emt 0:00:00]} 3. Nc3 {[%emt 0:01:19]} Bg7 {[%emt 0:00:05]} 4. Be3 {[%emt 0:00:17]} a6 {[%emt 0:00:27]} 5. h4 {[%emt 0:01:00]} Nf6 {[%emt 0:04:36]} 6. f3 {[%emt 0:00:39]} h5 {[%emt 0:03:45]} 7. Qd2 {[%emt 0:00:36]} b5 {[%emt 0:00:35]} 8. O-O-O {[%emt 0:00:14]} c6 {[%emt 0:00:57]} 9. Kb1 {[%emt 0:03:17]} Qc7 {[%emt 0:08:00]} 10. Bd3 {[%emt 0:02:54]} Nbd7 {[%emt 0:03:52]} 11. Nh3 {[%emt 0:00:52]} Bb7 {[%emt 0:07:36]} 12. Ng5 {[%emt 0:04:43]} e5 {[%emt 0:12:50]} 13. Qf2 {[%emt 0:05:40]} b4 {[%emt 0:09:28]} 14. Na4 {[%emt 0:05:08]} O-O {[%emt 0:11:53]} 15. dxe5 {[%emt 0:10:07]} Nxe5 {[%emt 0:01:21]} 16. Nb6 {[%emt 0:00:57]} Rab8 {[%emt 0:07:05]} 17. Bf4 {[%emt 0:03:43]} c5 {[%emt 0:05:29]} 18. Nc4 {[%emt 0:02:33]} Rbd8 {[%emt 0:03:41]} 19. Be2 {[%emt 0:04:59]} Qe7 {[%emt 0:06:25]} 20. Nxe5 {[%emt 0:02:25]} dxe5 {[%emt 0:00:08]} 21. Be3 {[%emt 0:00:05]} Rd4 {[%emt 0:01:14]} 22. Bxd4 {[%emt 0:00:41]} cxd4 {[%emt 0:00:40]} 23. g4 {[%emt 0:02:04]} Rc8 {[%emt 0:01:02]} 24. Rdg1 {[%emt 0:01:31]} hxg4 {[%emt 0:04:34]} 25. Bd3 {[%emt 0:05:49]} g3 {[%emt 0:02:53]} 26. Rxg3 {[%emt 0:00:20]} Nh5 {[%emt 0:00:08]} 27. Rg4 {[%emt 0:00:05]} Rc6 {[%emt 0:00:21]} 28. Qf1 {[%emt 0:05:25]} Bc8 {[%emt 0:00:24]} 29. Bc4 {[%emt 0:03:55]} Bxg4 {[%emt 0:02:28]} 30. fxg4 {[%emt 0:00:24]} Rf6 {[%emt 0:02:11]} 31. gxh5 {[%emt 0:07:19]} Rxf1+ {[%emt 0:00:39]} 32. Rxf1 {[%emt 0:00:05]} Qc5 {[%emt 0:00:40]} 33. Bxf7+ {[%emt 0:00:44]} Kh8 {[%emt 0:00:01]} 34. Bxg6 {[%emt 0:02:25]} d3 {[%emt 0:00:47]} 35. cxd3 {[%emt 0:00:28]} Qe3 {[%emt 0:00:18]} 36. Rc1 {[%emt 0:01:33]} Qxd3+ {[%emt 0:00:17]} 37. Ka1 {[%emt 0:00:05]} Bf8 {[%emt 0:00:49]} 38. Bf5 {[%emt 0:06:56]} Bc5 {[%emt 0:00:37]} 39. h6 {[%emt 0:00:28]} Qd2 {[%emt 0:00:36]} 40. Rb1 {[%emt 0:04:00]} Bd4 {[%emt 0:00:21]} 41. Nf7+ {[%emt 0:31:29]} Kg8 {[%emt 0:05:15]} 42. h7+ {[%emt 0:00:00]} Kxf7 {[%emt 0:00:09]} 43. h8=Q {[%emt 0:00:00]} Bxb2+ {[%emt 0:00:09]} 1/2-1/2